lending/lending_fUSD_20250808
["ID","MTS","AMOUNT","RATE_DAILY","PERIOD"]
[377973044,1754639446272,-920.79,0.00018776,2]
[377973046,1754639446282,-624.83,0.00018776,2]
[377973048,1754639446291,-400.0,0.00018776,2]
[377973050,1754639446301,-559.99648544,0.00018776,2]
[377973063,1754639446413,-756.45735762,0.00018776,2]
[377973152,1754639447235,-567.75615694,0.00018776,2]
[377973154,1754639447244,-89.86384006,0.00018776,2]
[377973791,1754639453968,549.94,0.00027397,120]
[377973792,1754639468791,666.0,0.00018006,3]
[377973793,1754639521929,191.0,0.000181,2]
[377973794,1754639534574,201.89,0.000181,2]
[377973795,1754639535356,204.46,0.00017873,2]
[377973796,1754639600498,500.0,0.00018002,2]
[377973797,1754639634020,176.26913509,0.0003,120]
[377973798,1754639676712,1000.0,0.00017856,2]
[377973799,1754639699402,250.0,0.00015,2]
[377973800,1754639700463,300.0,0.00017,2]
[377973801,1754639765294,400.0,0.00030136,120]
[377973802,1754639775977,-197.23103825,0.0001841,2]
[377973804,1754639831662,150.0,0.00016,2]
[377973805,1754639831810,150.0,0.0001718,2]
[377973806,1754639832871,281.61,0.00015068,2]
[377973807,1754639833286,281.61,0.00016654,2]
[377973810,1754639941977,175.0,0.00017775,7]
[377973813,1754640121341,214.0,0.00018,2]
[377973814,1754640135472,17395.34,0.00017815,2]
[377973815,1754640140343,1616.94,0.00030137,120]
[377973824,1754640311608,150.0,0.00017088,2]
[377973825,1754640315051,250.0,0.00017088,2]
[377973826,1754640362128,150.0,0.00015,2]
[377973827,1754640363155,150.0,0.0001618,2]
[377973828,1754640363358,150.0,0.0001737,2]
[377973829,1754640364345,300.0,0.00017798,2]
[377973830,1754640365948,300.0,0.00017798,2]
[377973832,1754640535410,160.36231303,0.00018059,2]
[377973833,1754640540390,160.36231303,0.00018099,2]
[377973839,1754640611524,666.0,0.00017735,3]
[377973841,1754640618403,303.07,0.00013699,2]
[377973844,1754640631398,160.36231303,0.00018054,2]
[377973853,1754640632392,-250.0,0.00018149,2]
[377973854,1754640632401,-1000.0,0.00018154,4]
[377973855,1754640632410,-351.97360709,0.00018159,4]
[377973856,1754640632421,-500.0,0.00018159,4]
[377973857,1754640632432,-148.02639291,0.00018159,4]
[377973858,1754640632442,-1017.45201016,0.00018218,2]
[377973859,1754640632451,-868.13035673,0.00018218,4]
[377973860,1754640632670,-131.86964327,0.00018218,4]
[377973861,1754640632679,-281.61,0.00018239,2]
[377973862,1754640632689,-37.4757516,0.00018288,2]
[377973863,1754640632700,-128.5842484,0.00018288,2]
[377973864,1754640632710,-200.0,0.0001851,2]
[377973865,1754640632719,-176.2691351,0.0001851,2]
[377973866,1754640632729,-150.0,0.0001855,2]
[377973868,1754640632738,-225.34622,0.0001859,2]
[377973869,1754640632748,-1000.0,0.0001863,2]
[377973870,1754640632757,-181.61,0.00018659,2]
[377973871,1754640632766,-154.84401691,0.00018676,2]
[377973872,1754640632775,-300.0,0.00018687,2]
[377973873,1754640632784,-482.32632959,0.00018687,2]
[377973874,1754640632820,-717.67367041,0.00018687,2]
[377973875,1754640632830,-300.0,0.00018687,2]
[377973876,1754640632840,-750.0,0.000187,2]
[377973877,1754640632849,-154.84401687,0.00018704,2]
[377973878,1754640632859,-1437.8,0.00018717,2]
[377973879,1754640632870,-481.24,0.00018717,2]
[377973880,1754640632879,-467.4,0.00018717,2]
[377973881,1754640632889,-1070.29645977,0.00018725,2]
[377973882,1754640632899,-150.0,0.00018729,2]
[377973883,1754640632908,-154.84401687,0.00018732,2]
[377973884,1754640632918,-540.54,0.00018736,2]
[377973885,1754640632927,-88892.39863882,0.00018739,2]
[377973886,1754640632939,-64971.97435358,0.00018739,2]
[377973887,1754640632958,-7432.21801938,0.00018739,2]
[377973898,1754640638326,-2128.435178,0.00018739,2]
[377973899,1754640638338,-7408.39310736,0.00018739,2]
[377973901,1754640639650,-1010.43986575,0.00018739,2]
[377973902,1754640640455,-815936.23388931,0.00018739,2]
[377973903,1754640640465,-1070.29645977,0.0001875,2]
[377973904,1754640640474,-150.0,0.00018752,2]
[377973905,1754640640484,-150.0,0.0001876,2]
[377973906,1754640640493,-150.0,0.0001876,2]
[377973907,1754640640502,-154.84401687,0.0001876,2]
[377973908,1754640640512,-1180.12550788,0.00018763,2]
[377973909,1754640640521,-267.46074303,0.00018764,2]
[377973910,1754640640531,-5199.43684444,0.00018764,2]
[377973911,1754640640540,-151.0,0.00018765,2]
[377973912,1754640640549,-541.34445954,0.00018765,2]
[377973913,1754640640559,-301.00551465,0.00018765,2]
[377973914,1754640640568,-160.0,0.00018765,2]
[377973915,1754640640577,-500.0,0.00018765,2]
[377973916,1754640640587,-500.0,0.00018773,2]
[377973917,1754640640596,-635.46283834,0.00018773,2]
[377973918,1754640640605,-502.22627053,0.00018773,2]
[377973919,1754640640614,-500.0,0.00018773,2]
[377973920,1754640640623,-1415.01,0.00018774,2]
[377973921,1754640640633,-1466.61,0.00018774,2]
[377973922,1754640640643,-719.15,0.00018774,2]
[377973923,1754640640652,-1458.98,0.00018774,2]
[377973924,1754640640664,-1190.7,0.00018774,2]
[377973925,1754640640673,-383.39059491,0.00018774,2]
[377973926,1754640640682,-1792.33,0.00018774,2]
[377973927,1754640640692,-401.90111728,0.00018774,2]
[377973928,1754640640701,-1285.58,0.00018774,2]
[377973929,1754640640710,-566.21,0.00018774,2]
[377973930,1754640640719,-404.39011815,0.00018774,2]
[377973931,1754640640728,-1181.52,0.00018774,2]
[377973932,1754640640737,-690.88,0.00018774,2]
[377973933,1754640640746,-1030.02,0.00018774,2]
[377973934,1754640640755,-400.0,0.00018774,2]
[377973935,1754640640765,-1657.0,0.00018774,2]
[377973936,1754640640774,-400.0,0.00018774,2]
[377973937,1754640640783,-400.0,0.00018774,2]
[377973938,1754640640792,-1716.63,0.00018774,2]
[377973939,1754640640801,-745.87,0.00018774,2]
[377973940,1754640640810,-400.0,0.00018774,2]
[377973941,1754640640820,-519.58141059,0.00018774,2]
[377973942,1754640640829,-500.0,0.00018774,2]
[377973943,1754640640838,-500.0,0.00018774,2]
[377973944,1754640640847,-352.66592673,0.00018774,2]
[377973945,1754640640857,-166.7947053,0.00018775,2]
[377973946,1754640640866,-402.69992627,0.00018775,2]
[377973947,1754640640876,-402.51482241,0.00018775,2]
[377973948,1754640640886,-401.31406468,0.00018775,2]
[377973949,1754640640895,-400.0,0.00018775,2]
[377973950,1754640640906,-513.48,0.00018775,2]
[377973951,1754640640915,-400.0,0.00018775,2]
[377973952,1754640640925,-400.0,0.00018775,2]
[377973954,1754640640934,-400.0,0.00018775,2]
[377973955,1754640640943,-400.0,0.00018775,2]
[377973957,1754640640953,-605.45,0.00018775,2]
[377973960,1754640640963,-596.33,0.00018775,2]
[377973961,1754640640974,-400.0,0.00018775,2]
[377973963,1754640640984,-400.0,0.00018775,2]
[377973965,1754640640994,-400.0,0.00018775,2]
[377973967,1754640641003,-400.0,0.00018775,2]
[377973969,1754640641013,-400.0,0.00018775,2]
[377973971,1754640641023,-400.0,0.00018775,2]
[377973973,1754640641032,-400.0,0.00018775,2]
[377973974,1754640641041,-400.0,0.00018775,2]
[377973975,1754640641051,-400.0,0.00018775,2]
[377973976,1754640641061,-568.38,0.00018775,2]
[377973977,1754640641071,-400.0,0.00018775,2]
[377973978,1754640641080,-400.0,0.00018775,2]
[377973979,1754640641090,-400.0,0.00018775,2]
[377973980,1754640641099,-420.59,0.00018775,2]
[377973981,1754640641109,-949.9,0.00018775,2]
[377973982,1754640641118,-400.0,0.00018775,2]
[377973983,1754640641127,-400.0,0.00018775,2]
[377973984,1754640641137,-400.0,0.00018775,2]
[377973985,1754640641146,-400.0,0.00018775,2]
[377973986,1754640641156,-152.51596171,0.00018775,2]
[377973987,1754640641165,-667.62,0.00018775,2]
[377973988,1754640641174,-595.65,0.00018775,2]
[377973989,1754640641183,-997.12,0.00018775,2]
[377973990,1754640641193,-400.0,0.00018775,2]
[377973991,1754640641202,-406.2,0.00018775,2]
[377973992,1754640641211,-471.05,0.00018775,2]
[377973993,1754640641221,-400.0,0.00018775,2]
[377973994,1754640641230,-400.0,0.00018775,2]
[377973995,1754640641240,-400.0,0.00018775,2]
[377973996,1754640641249,-400.0,0.00018775,2]
[377973997,1754640641259,-402.1098783,0.00018775,2]
[377973998,1754640641269,-701.62,0.00018775,2]
[377973999,1754640641279,-400.0,0.00018775,2]
[377974000,1754640641288,-442.15,0.00018775,2]
[377974001,1754640641298,-400.0,0.00018775,2]
[377974002,1754640641308,-400.0,0.00018775,2]
[377974003,1754640641317,-624.05,0.00018775,2]
[377974004,1754640641327,-512.5,0.00018775,2]
[377974005,1754640641336,-439.97,0.00018775,2]
[377974006,1754640641346,-480.29,0.00018775,2]
[377974007,1754640641355,-400.0,0.00018775,2]
[377974008,1754640641365,-1452.18,0.00018775,2]
[377974009,1754640641374,-400.0,0.00018775,2]
[377974010,1754640641384,-400.0,0.00018775,2]
[377974011,1754640641394,-400.0,0.00018775,2]
[377974012,1754640641403,-513.08,0.00018775,2]
[377974013,1754640641412,-400.0,0.00018775,2]
[377974014,1754640641422,-633.89,0.00018775,2]
[377974015,1754640641432,-400.0,0.00018775,2]
[377974016,1754640641442,-519.14,0.00018775,2]
[377974017,1754640641451,-400.0,0.00018775,2]
[377974018,1754640641461,-500.0,0.00018775,2]
[377974019,1754640641470,-402.16612434,0.00018775,2]
[377974020,1754640641479,-684.71,0.00018775,2]
[377974021,1754640641489,-400.0,0.00018775,2]
[377974022,1754640641498,-562.49,0.00018775,2]
[377974023,1754640641507,-400.0,0.00018775,2]
[377974024,1754640641517,-400.0,0.00018775,2]
[377974025,1754640641526,-400.0,0.00018775,2]
[377974026,1754640641535,-400.0,0.00018775,2]
[377974027,1754640641544,-837.93,0.00018775,2]
[377974028,1754640641554,-400.0,0.00018775,2]
[377974029,1754640641568,-999.47,0.00018775,2]
[377974030,1754640641583,-749.33,0.00018775,2]
[377974031,1754640641598,-489.88,0.00018775,2]
[377974032,1754640641609,-932.6,0.00018775,2]
[377974033,1754640641623,-400.0,0.00018775,2]
[377974034,1754640641638,-400.0,0.00018775,2]
[377974035,1754640641652,-400.0,0.00018775,2]
[377974036,1754640641666,-400.0,0.00018775,2]
[377974037,1754640641680,-695.69,0.00018775,2]
[377974038,1754640641693,-400.0,0.00018775,2]
[377974039,1754640641704,-919.4,0.00018775,2]
[377974040,1754640641717,-400.0,0.00018775,2]
[377974041,1754640641731,-502.81,0.00018775,2]
[377974042,1754640641745,-929.04,0.00018775,2]
[377974043,1754640641759,-471.79,0.00018775,2]
[377974044,1754640641773,-400.0,0.00018775,2]
[377974045,1754640641787,-806.78,0.00018775,2]
[377974046,1754640641801,-917.96,0.00018775,2]
[377974047,1754640641814,-400.0,0.00018775,2]
[377974048,1754640641828,-400.0,0.00018775,2]
[377974049,1754640641841,-400.0,0.00018775,2]
[377974050,1754640641856,-400.0,0.00018775,2]
[377974051,1754640641870,-400.0,0.00018775,2]
[377974052,1754640641884,-905.64,0.00018775,2]
[377974053,1754640641897,-400.0,0.00018775,2]
[377974054,1754640641908,-400.0,0.00018775,2]
[377974055,1754640641920,-400.77569369,0.00018775,2]
[377974056,1754640641933,-814.28,0.00018775,2]
[377974057,1754640641950,-400.0,0.00018775,2]
[377974058,1754640641960,-400.0,0.00018775,2]
[377974059,1754640641974,-940.56,0.00018775,2]
[377974060,1754640641987,-378.47718118,0.00018775,2]
[377974061,1754640642001,-400.0,0.00018775,2]
[377974062,1754640642014,-994.55,0.00018775,2]
[377974063,1754640642026,-400.0,0.00018775,2]
[377974064,1754640642037,-811.21,0.00018775,2]
[377974065,1754640642051,-400.0,0.00018775,2]
[377974066,1754640642063,-400.0,0.00018775,2]
[377974067,1754640642075,-400.0,0.00018775,2]
[377974068,1754640642088,-642.62,0.00018775,2]
[377974069,1754640642107,-400.0,0.00018775,2]
[377974070,1754640642120,-400.0,0.00018775,2]
[377974071,1754640642133,-400.0,0.00018775,2]
[377974072,1754640642146,-1250.27,0.00018775,2]
[377974073,1754640642159,-400.0,0.00018775,2]
[377974074,1754640642173,-983.22,0.00018775,2]
[377974075,1754640642186,-400.0,0.00018775,2]
[377974076,1754640642199,-624.9,0.00018775,2]
[377974077,1754640642211,-691.69,0.00018775,2]
[377974078,1754640642224,-400.0,0.00018775,2]
[377974079,1754640642237,-400.0,0.00018775,2]
[377974080,1754640642250,-400.0,0.00018775,2]
[377974081,1754640642262,-400.0,0.00018775,2]
[377974082,1754640642275,-459.22,0.00018775,2]
[377974083,1754640642287,-508.91,0.00018775,2]
[377974084,1754640642300,-804.5,0.00018775,2]
[377974085,1754640642313,-400.0,0.00018775,2]
[377974086,1754640642326,-400.0,0.00018775,2]
[377974087,1754640642339,-759.17,0.00018775,2]
[377974088,1754640642351,-400.0,0.00018775,2]
[377974089,1754640642365,-400.0,0.00018775,2]
[377974090,1754640642377,-513.52,0.00018775,2]
[377974091,1754640642391,-400.0,0.00018775,2]
[377974092,1754640642404,-400.0,0.00018775,2]
[377974093,1754640642417,-411.72,0.00018775,2]
[377974094,1754640642430,-400.0,0.00018775,2]
[377974095,1754640642443,-273.92841445,0.00018775,2]
[377974096,1754640642456,-400.0,0.00018775,2]
[377974097,1754640642468,-978.1,0.00018775,2]
[377974098,1754640642481,-400.0,0.00018775,2]
[377974099,1754640642494,-1105.35,0.00018775,2]
[377974100,1754640642507,-400.0,0.00018775,2]
[377974101,1754640642520,-400.0,0.00018775,2]
[377974102,1754640642532,-716.33,0.00018775,2]
[377974103,1754640642544,-400.0,0.00018775,2]
[377974104,1754640642556,-400.0,0.00018775,2]
[377974105,1754640642569,-668.91,0.00018775,2]
[377974106,1754640642581,-901.96,0.00018775,2]
[377974107,1754640642593,-534.82,0.00018775,2]
[377974108,1754640642606,-416.16,0.00018775,2]
[377974109,1754640642618,-400.0,0.00018775,2]
[377974110,1754640642633,-400.0,0.00018775,2]
[377974111,1754640642646,-400.0,0.00018775,2]
[377974112,1754640642658,-955.05,0.00018775,2]
[377974113,1754640642671,-400.0,0.00018775,2]
[377974114,1754640642684,-612.08,0.00018775,2]
[377974115,1754640642697,-400.0,0.00018775,2]
[377974116,1754640642711,-400.0,0.00018775,2]
[377974117,1754640642724,-766.08,0.00018775,2]
[377974118,1754640642737,-400.0,0.00018775,2]
[377974119,1754640642750,-1566.7,0.00018775,2]
[377974120,1754640642763,-490.58,0.00018775,2]
[377974121,1754640642775,-400.0,0.00018775,2]
[377974122,1754640642788,-400.0,0.00018775,2]
[377974123,1754640642801,-258.23864088,0.00018775,2]
[377974124,1754640642813,-400.0,0.00018775,2]
[377974125,1754640642825,-400.0,0.00018775,2]
[377974126,1754640642837,-400.0,0.00018775,2]
[377974127,1754640642850,-526.74,0.00018775,2]
[377974128,1754640642862,-503.57,0.00018775,2]
[377974129,1754640642874,-400.0,0.00018775,2]
[377974130,1754640642888,-656.81,0.00018775,2]
[377974131,1754640642900,-400.0,0.00018775,2]
[377974132,1754640642913,-558.22,0.00018775,2]
[377974133,1754640642925,-400.0,0.00018775,2]
[377974134,1754640642938,-1070.29645977,0.00018775,2]
[377974135,1754640642950,-440.51,0.00018775,2]
[377974136,1754640642963,-402.66277957,0.00018775,2]
[377974137,1754640642978,-515.63,0.00018775,2]
[377974138,1754640642991,-513.39,0.00018775,2]
[377974139,1754640643003,-854.26,0.00018775,2]
[377974140,1754640643016,-400.0,0.00018775,2]
[377974141,1754640643028,-422.66,0.00018775,2]
[377974142,1754640643041,-400.0,0.00018775,2]
[377974144,1754640643054,-1166.21,0.00018775,2]
[377974145,1754640643066,-1881.54,0.00018775,2]
[377974146,1754640643079,-400.0,0.00018775,2]
[377974147,1754640643091,-402.8880653,0.00018775,2]
[377974149,1754640643104,-1301.85,0.00018775,2]
[377974150,1754640643116,-1489.56,0.00018775,2]
[377974151,1754640643129,-401.37630403,0.00018775,2]
[377974152,1754640643143,-400.0,0.00018775,2]
[377974153,1754640643155,-400.0,0.00018775,2]
[377974154,1754640643167,-400.0,0.00018775,2]
[377974155,1754640643180,-400.0,0.00018775,2]
[377974156,1754640643192,-826.07,0.00018775,2]
[377974157,1754640643204,-400.0,0.00018775,2]
[377974158,1754640643216,-400.0,0.00018775,2]
[377974159,1754640643228,-697.12,0.00018775,2]
[377974160,1754640643240,-402.69287945,0.00018775,2]
[377974161,1754640643252,-932.2,0.00018775,2]
[377974162,1754640643264,-400.0,0.00018775,2]
[377974163,1754640643277,-400.0,0.00018775,2]
[377974164,1754640643288,-456.1,0.00018775,2]
[377974165,1754640643300,-400.0,0.00018775,2]
[377974166,1754640643312,-1360.39,0.00018775,2]
[377974167,1754640643323,-400.0,0.00018775,2]
[377974168,1754640643335,-400.0,0.00018775,2]
[377974170,1754640643346,-644.87,0.00018775,2]
[377974171,1754640643360,-400.0,0.00018775,2]
[377974172,1754640643371,-400.0,0.00018775,2]
[377974173,1754640643383,-400.0,0.00018775,2]
[377974174,1754640643396,-400.0,0.00018775,2]
[377974175,1754640643408,-400.0,0.00018775,2]
[377974176,1754640643420,-400.0,0.00018775,2]
[377974177,1754640643432,-400.0,0.00018775,2]
[377974178,1754640643444,-780.81,0.00018775,2]
[377974179,1754640643456,-908.4,0.00018775,2]
[377974180,1754640643468,-400.0,0.00018775,2]
[377974181,1754640643479,-400.0,0.00018775,2]
[377974182,1754640643491,-400.0,0.00018775,2]
[377974183,1754640643503,-400.0,0.00018775,2]
[377974184,1754640643515,-400.0,0.00018775,2]
[377974185,1754640643526,-400.0,0.00018775,2]
[377974186,1754640643538,-400.0,0.00018775,2]
[377974187,1754640643549,-400.0,0.00018775,2]
[377974188,1754640643561,-638.87,0.00018775,2]
[377974189,1754640643573,-400.0,0.00018775,2]
[377974190,1754640643586,-674.19,0.00018775,2]
[377974191,1754640643598,-1065.47,0.00018775,2]
[377974192,1754640643610,-526.27202617,0.00018775,2]
[377974193,1754640643621,-400.0,0.00018775,2]
[377974194,1754640643633,-400.0,0.00018775,2]
[377974195,1754640643645,-400.0,0.00018775,2]
[377974196,1754640643657,-402.4117891,0.00018775,2]
[377974197,1754640643668,-1089.53,0.00018775,2]
[377974198,1754640643681,-400.0,0.00018775,2]
[377974199,1754640643692,-548.9,0.00018775,2]
[377974200,1754640643703,-484.95,0.00018775,2]
[377974201,1754640643714,-613.99,0.00018775,2]
[377974202,1754640643726,-598.0,0.00018775,2]
[377974203,1754640643737,-559.34,0.00018775,2]
[377974204,1754640643748,-400.0,0.00018775,2]
[377974205,1754640643760,-714.3,0.00018775,2]
[377974206,1754640643771,-731.5,0.00018775,2]
[377974207,1754640643783,-1222.54,0.00018775,2]
[377974208,1754640643794,-1141.67,0.00018775,2]
[377974209,1754640643806,-518.71,0.00018775,2]
[377974210,1754640643818,-623.4,0.00018775,2]
[377974211,1754640643830,-400.0,0.00018775,2]
[377974212,1754640643842,-622.36,0.00018775,2]
[377974213,1754640643853,-1039.47,0.00018775,2]
[377974214,1754640643865,-400.0,0.00018775,2]
[377974215,1754640643879,-400.0,0.00018775,2]
[377974216,1754640643891,-400.0,0.00018775,2]
[377974217,1754640643902,-1000.0,0.00018775,2]
[377974218,1754640643914,-600.74,0.00018775,2]
[377974219,1754640643926,-479.42,0.00018775,2]
[377974220,1754640643938,-882.42,0.00018775,2]
[377974221,1754640643949,-658.11,0.00018775,2]
[377974222,1754640643962,-940.06,0.00018775,2]
[377974223,1754640643975,-777.0,0.00018775,2]
[377974224,1754640643986,-400.0,0.00018775,2]
[377974225,1754640643996,-401.73482229,0.00018775,2]
[377974226,1754640644008,-400.0,0.00018775,2]
[377974227,1754640644019,-400.0,0.00018775,2]
[377974228,1754640644030,-402.55998138,0.00018775,2]
[377974229,1754640644042,-855.03,0.00018775,2]
[377974230,1754640644055,-746.37,0.00018775,2]
[377974231,1754640644067,-400.0,0.00018775,2]
[377974232,1754640644079,-400.0,0.00018775,2]
[377974233,1754640644090,-400.0,0.00018775,2]
[377974234,1754640644102,-400.0,0.00018775,2]
[377974235,1754640644114,-1228.56,0.00018775,2]
[377974236,1754640644125,-1498.13,0.00018775,2]
[377974237,1754640644139,-400.0,0.00018775,2]
[377974238,1754640644150,-400.0,0.00018775,2]
[377974239,1754640644162,-400.0,0.00018775,2]
[377974240,1754640644173,-400.0,0.00018775,2]
[377974241,1754640644185,-708.13,0.00018775,2]
[377974242,1754640644196,-358.89381241,0.00018775,2]
[377974243,1754640644207,-401.70394548,0.00018775,2]
[377974244,1754640644219,-655.89,0.00018775,2]
[377974246,1754640644230,-912.91,0.00018775,2]
[377974247,1754640644241,-422.94,0.00018775,2]
[377974248,1754640644252,-400.0,0.00018775,2]
[377974250,1754640644264,-400.0,0.00018775,2]
[377974251,1754640644275,-400.0,0.00018775,2]
[377974252,1754640644286,-1296.35,0.00018775,2]
[377974253,1754640644298,-401.66660176,0.00018775,2]
[377974254,1754640644310,-659.57,0.00018775,2]
[377974255,1754640644322,-568.19,0.00018775,2]
[377974256,1754640644334,-589.5,0.00018775,2]
[377974257,1754640644345,-785.8,0.00018775,2]
[377974258,1754640644356,-483.95,0.00018775,2]
[377974259,1754640644368,-400.0,0.00018775,2]
[377974260,1754640644380,-400.0,0.00018775,2]
[377974261,1754640644394,-400.0,0.00018775,2]
[377974262,1754640644406,-400.0,0.00018775,2]
[377974263,1754640644418,-400.0,0.00018775,2]
[377974264,1754640644427,-400.0,0.00018775,2]
[377974265,1754640644852,-583.86,0.00018775,2]
[377974266,1754640644880,-400.0,0.00018775,2]
[377974267,1754640644907,-400.0,0.00018775,2]
[377974268,1754640644927,-841.78,0.00018775,2]
[377974269,1754640644937,-476.15,0.00018775,2]
[377974270,1754640644946,-400.0,0.00018775,2]
[377974271,1754640644956,-400.0,0.00018775,2]
[377974272,1754640644966,-400.0,0.00018775,2]
[377974273,1754640644978,-1885.2,0.00018775,2]
[377974274,1754640644988,-867.4,0.00018775,2]
[377974275,1754640644998,-400.0,0.00018775,2]
[377974276,1754640645007,-732.72,0.00018775,2]
[377974277,1754640645017,-627.55,0.00018775,2]
[377974278,1754640645028,-400.0,0.00018775,2]
[377974279,1754640645037,-802.86,0.00018775,2]
[377974280,1754640645048,-1085.83,0.00018775,2]
[377974281,1754640645057,-742.97,0.00018775,2]
[377974282,1754640645067,-691.98,0.00018775,2]
[377974283,1754640645077,-960.78,0.00018775,2]
[377974284,1754640645087,-483.95,0.00018775,2]
[377974285,1754640645096,-400.0,0.00018775,2]
[377974286,1754640645106,-668.16,0.00018775,2]
[377974287,1754640645116,-368.75387287,0.00018775,2]
[377974288,1754640645125,-1403.07,0.00018775,2]
[377974289,1754640645134,-1232.7,0.00018775,2]
[377974290,1754640645144,-441.95,0.00018775,2]
[377974291,1754640645154,-400.0,0.00018775,2]
[377974292,1754640645163,-756.28,0.00018775,2]
[377974293,1754640645173,-263.39364803,0.00018775,2]
[377974294,1754640645183,-400.0,0.00018775,2]
[377974295,1754640645193,-400.0,0.00018775,2]
[377974296,1754640645203,-400.0,0.00018775,2]
[377974297,1754640645213,-685.41,0.00018775,2]
[377974298,1754640645222,-845.2,0.00018775,2]
[377974299,1754640645231,-400.0,0.00018775,2]
[377974300,1754640645241,-1045.8,0.00018775,2]
[377974301,1754640645250,-1132.05,0.00018775,2]
[377974302,1754640645260,-400.0,0.00018775,2]
[377974303,1754640645269,-697.4,0.00018775,2]
[377974304,1754640645279,-400.0,0.00018775,2]
[377974305,1754640645288,-837.25,0.00018775,2]
[377974306,1754640645298,-1838.16,0.00018775,2]
[377974307,1754640645308,-703.76,0.00018775,2]
[377974308,1754640645317,-498.84,0.00018775,2]
[377974309,1754640645327,-727.01,0.00018775,2]
[377974310,1754640645337,-813.61,0.00018775,2]
[377974311,1754640645348,-13708.43,0.00018775,2]
[377974312,1754640645360,-400.0,0.00018775,2]
[377974313,1754640645370,-794.18,0.00018775,2]
[377974314,1754640645381,-908.24,0.00018775,2]
[377974315,1754640645392,-400.0,0.00018775,2]
[377974316,1754640645402,-592.45,0.00018775,2]
[377974317,1754640645411,-790.41,0.00018775,2]
[377974318,1754640645421,-400.0,0.00018775,2]
[377974319,1754640645431,-543.53,0.00018775,2]
[377974320,1754640645440,-400.0,0.00018775,2]
[377974321,1754640645450,-1455.1,0.00018775,2]
[377974322,1754640645460,-400.0,0.00018775,2]
[377974323,1754640645470,-1178.66,0.00018775,2]
[377974324,1754640645480,-1195.59,0.00018775,2]
[377974325,1754640645491,-445.41,0.00018775,2]
[377974326,1754640645501,-400.0,0.00018775,2]
[377974327,1754640645511,-715.2,0.00018775,2]
[377974328,1754640645522,-415.71,0.00018775,2]
[377974329,1754640645532,-400.0,0.00018775,2]
[377974330,1754640645541,-401.75299637,0.00018775,2]
[377974331,1754640645551,-797.79,0.00018775,2]
[377974332,1754640645560,-476.39,0.00018775,2]
[377974333,1754640645569,-400.0,0.00018775,2]
[377974334,1754640645579,-400.0,0.00018775,2]
[377974335,1754640645588,-920.85,0.00018775,2]
[377974336,1754640645597,-576.9,0.00018775,2]
[377974337,1754640645607,-400.0,0.00018775,2]
[377974338,1754640645616,-400.0,0.00018775,2]
[377974339,1754640645625,-400.0,0.00018775,2]
[377974340,1754640645636,-400.0,0.00018775,2]